bitfinex/quotes_SOLUSD_20250306
["timestamp","ask_amount","ask_price","bid_price","bid_amount"]
[1741281777721,35.89907514,144.6,144.59,0.033]
[1741281778226,28.98347514,144.6,144.59,0.033]
[1741281779105,35.89907514,144.6,144.59,312.17516157]
[1741281779424,28.98347514,144.6,144.59,312.17516157]
[1741281780003,0.03,144.63,144.6,0.14216157]
[1741281780207,28.98347514,144.62,144.6,89.96216157]
[1741281780433,28.98347514,144.61,144.6,89.96216157]
[1741281781125,35.89857514,144.61,144.6,7.86216157]
[1741281781308,0.03,144.63,144.6,14.77766157]
[1741281781623,28.98347514,144.61,144.6,7.86216157]
[1741281782132,28.98347514,144.61,144.59,0.033]
[1741281782309,28.98347514,144.6,144.59,0.033]
[1741281783000,35.89907514,144.6,144.59,0.033]
[1741281783202,54.21120471,144.6,144.54,89.82]
[1741281783434,28.98347514,144.55,144.54,7.72]
[1741281783636,57.96695028,144.55,144.49,219.9]
[1741281783799,57.96695028,144.55,144.49,82.1]
[1741281783800,28.98347514,144.5,144.49,82.1]
[1741281784112,28.98347514,144.51,144.5,0.14216157]
[1741281784315,28.98347514,144.55,144.5,0.42648471]
[1741281784316,28.98347514,144.52,144.5,0.42648471]
[1741281784613,28.98347514,144.51,144.5,82.1]
[1741281784814,28.98347514,144.51,144.5,82.38432314]
[1741281785005,28.98347514,144.51,144.45,0.033]
[1741281785006,0.28432314,144.5,144.45,0.033]
[1741281785203,28.98347514,144.46,144.45,0.033]
[1741281785524,28.98347514,144.46,144.43,21.66728348]
[1741281785716,36.91547514,144.45,144.43,21.66728348]
[1741281785917,28.98347514,144.44,144.43,21.66728348]
[1741281786234,28.98347514,144.44,144.43,0.033]
[1741281786620,57.96695028,144.44,144.4,312.033]
[1741281786928,28.98347514,144.41,144.4,312.033]
[1741281787500,28.98347514,144.41,144.4,312.17516157]
[1741281788132,7.932,144.45,144.41,0.14216157]
[1741281788133,28.98347514,144.43,144.41,0.14216157]
[1741281788332,28.98347514,144.45,144.43,0.14216157]
[1741281788517,6.9214,144.48,144.43,0.14216157]
[1741281788518,28.98347514,144.44,144.43,0.14216157]
[1741281789233,8.0283,144.49,144.43,185.85960871]
[1741281789234,28.98347514,144.49,144.43,185.85960871]
[1741281789806,36.47794869,144.53,144.47,0.14216157]
[1741281790007,28.98347514,144.51,144.49,0.14216157]
[1741281790617,8.1727,144.53,144.49,82.24216157]
[1741281790817,28.98347514,144.51,144.49,82.24216157]
[1741281791041,7.9135,144.56,144.51,0.14216157]
[1741281791240,28.98347514,144.55,144.51,0.14216157]
[1741281791445,28.98347514,144.55,144.53,0.14216157]
[1741281791644,6.9161,144.59,144.53,0.14216157]
[1741281791840,28.98347514,144.55,144.53,0.14216157]
[1741281792334,28.98347514,144.56,144.53,0.14216157]
[1741281792533,28.98347514,144.56,144.55,0.14216157]
[1741281793836,35.90097514,144.56,144.55,0.14216157]
[1741281794246,35.90097514,144.56,144.51,82.1]
[1741281794247,64.88445028,144.56,144.52,0.14216157]
[1741281794418,28.98347514,144.53,144.52,0.14216157]
[1741281794626,28.98347514,144.53,144.52,312.0]
[1741281795143,28.98347514,144.53,144.52,312.14216157]
[1741281795355,35.90237514,144.53,144.52,312.14216157]
[1741281795523,28.98347514,144.53,144.52,312.14216157]
[1741281795719,35.90237514,144.53,144.52,312.14216157]
[1741281796125,28.98347514,144.53,144.52,312.14216157]
[1741281796643,6.9165,144.58,144.53,0.14216157]
[1741281796948,28.98347514,144.54,144.52,0.14216157]
[1741281797126,28.98347514,144.53,144.52,0.14216157]
[1741281797324,6.9176,144.56,144.52,0.14216157]
[1741281797525,28.98347514,144.53,144.52,0.14216157]
[1741281799432,18.31432957,144.59,144.52,0.14216157]
[1741281799433,28.98347514,144.54,144.52,0.14216157]
[1741281799629,28.98347514,144.54,144.53,312.0]
[1741281799835,28.98347514,144.54,144.53,312.14216157]
[1741281800146,28.98347514,144.56,144.54,0.14216157]
[1741281800347,28.98347514,144.55,144.54,89.94216157]
[1741281801122,28.98347514,144.55,144.52,82.1]
[1741281801321,6.9176,144.56,144.53,0.14216157]
[1741281801543,28.98347514,144.54,144.53,0.14216157]
[1741281803250,6.9189,144.53,144.5,7.7]
[1741281803549,35.90237514,144.53,144.5,319.7]
[1741281803955,6.9189,144.53,144.51,0.14216157]
[1741281804129,24.2163,144.53,144.44,226.8229]
[1741281804332,28.98347514,144.47,144.46,7.7]
[1741281804547,28.98347514,144.47,144.46,89.94216157]
[1741281804959,28.98347514,144.47,144.46,89.8]
[1741281805124,28.98347514,144.47,144.46,89.94216157]
[1741281805324,28.98347514,144.47,144.46,89.8]
[1741281805644,28.98347514,144.47,144.46,82.24216157]
[1741281805841,35.90527514,144.47,144.46,82.24216157]
[1741281806452,28.98347514,144.47,144.46,82.24216157]
[1741281807032,28.98347514,144.47,144.46,394.24216157]
[1741281807755,1.6196,144.51,144.47,0.14216157]
[1741281807941,28.98347514,144.49,144.47,0.14216157]
[1741281808343,28.98347514,144.5,144.47,82.52648471]
[1741281808847,28.98347514,144.48,144.47,82.24216157]
[1741281809266,28.98347514,144.5,144.47,82.24216157]
[1741281809461,28.98347514,144.48,144.47,82.24216157]
[1741281809768,13.0634,144.52,144.47,82.24216157]
[1741281809961,28.98347514,144.5,144.49,0.14216157]
[1741281810269,28.98347514,144.52,144.49,0.14216157]
[1741281810774,28.98347514,144.52,144.51,312.14216157]
[1741281811367,28.98347514,144.52,144.51,0.14216157]
[1741281811974,35.90287514,144.52,144.51,0.14216157]
[1741281815072,28.98347514,144.52,144.51,0.14216157]
[1741281815273,35.90287514,144.52,144.51,0.14216157]
[1741281816172,54.22460471,144.52,144.46,82.1]
[1741281816371,28.98347514,144.47,144.45,7.7]
[1741281816574,6.9194,144.52,144.46,0.14216157]
[1741281816779,28.98347514,144.49,144.46,82.24216157]
[1741281816962,28.98347514,144.49,144.48,0.14216157]
[1741281817284,28.98347514,144.49,144.47,0.14216157]
[1741281817586,28.98347514,144.48,144.47,0.14216157]
[1741281817765,28.98347514,144.48,144.47,312.14216157]
[1741281819482,35.90477514,144.48,144.47,312.14216157]
[1741281819682,64.88825028,144.48,144.44,0.14216157]
[1741281819878,28.98347514,144.45,144.43,0.033]
[1741281820056,28.98347514,144.44,144.43,0.17516157]
[1741281820261,28.98347514,144.44,144.43,0.033]
[1741281821072,35.90667514,144.44,144.43,0.033]
[1741281821275,6.9231,144.45,144.43,0.033]
[1741281821579,28.98347514,144.44,144.43,0.033]
[1741281824688,35.90667514,144.44,144.43,0.033]
[1741281824892,28.98347514,144.44,144.43,0.033]
[1741281825395,35.90667514,144.44,144.43,0.033]
[1741281825599,28.98347514,144.44,144.43,0.033]
[1741281825798,35.90667514,144.44,144.43,0.033]
[1741281825996,36.92980471,144.44,144.43,0.033]
[1741281826590,35.90667514,144.44,144.43,0.033]
[1741281827292,28.98347514,144.44,144.43,0.033]
[1741281828902,35.90667514,144.44,144.43,0.033]
[1741281830306,136.556324,144.44,144.43,0.033]
[1741281830800,57.96695028,144.41,144.4,312.17516157]
[1741281831101,28.98347514,144.41,144.4,312.17516157]
[1741281832401,35.90817514,144.41,144.4,312.17516157]
[1741281832804,28.98347514,144.41,144.4,312.033]
[1741281833001,35.90817514,144.41,144.4,312.17516157]
[1741281833176,28.98347514,144.41,144.4,0.17516157]
[1741281835688,35.90817514,144.41,144.4,0.17516157]
[1741281836203,35.90817514,144.41,144.4,312.17516157]
[1741281837307,64.89165028,144.41,144.4,312.033]
[1741281838106,35.90817514,144.41,144.4,312.033]
[1741281838408,28.98347514,144.41,144.4,312.17516157]
[1741281839498,28.98347514,144.41,144.4,0.17516157]
[1741281839703,35.90817514,144.41,144.4,0.17516157]
[1741281840612,25.10526522,144.41,144.4,0.17516157]
[1741281841190,43.28583044,144.41,144.4,0.17516157]
[1741281843092,18.18056522,144.41,144.4,0.17516157]
[1741281843413,43.28583044,144.41,144.4,0.17516157]
[1741281843911,18.18056522,144.41,144.4,0.17516157]
[1741281844407,82.0,144.43,144.4,0.17516157]
[1741281844408,18.18056522,144.42,144.41,0.14216157]
[1741281844802,83.532,144.47,144.41,7.06686157]
[1741281845010,18.18056522,144.45,144.41,7.06686157]
[1741281845614,18.18056522,144.44,144.41,89.16686157]
[1741281845793,18.18056522,144.42,144.41,82.24216157]
[1741281846000,18.18056522,144.42,144.41,0.14216157]
[1741281846318,18.18056522,144.42,144.41,312.14216157]
[1741281846810,1.02312957,144.46,144.41,312.14216157]
[1741281847011,18.18056522,144.44,144.41,0.14216157]
[1741281847216,18.18056522,144.43,144.41,82.24216157]
[1741281847515,18.18056522,144.42,144.41,82.24216157]
[1741281848001,18.18056522,144.43,144.41,82.24216157]
[1741281848194,18.18056522,144.42,144.41,82.24216157]
[1741281849122,18.18056522,144.42,144.41,0.14216157]
[1741281849498,18.18056522,144.42,144.4,0.033]
[1741281849499,25.10476522,144.42,144.4,0.033]
[1741281849729,18.18056522,144.41,144.4,0.033]
[1741281850027,18.18056522,144.41,144.4,312.17516157]
[1741281850333,18.18056522,144.41,144.4,312.033]
[1741281850710,18.18056522,144.41,144.4,312.17516157]
[1741281851105,89.94652957,144.44,144.41,0.14216157]
[1741281851307,18.18056522,144.42,144.41,0.14216157]
[1741281851822,37.38426001,144.42,144.4,0.033]
[1741281852009,36.36113044,144.41,144.4,0.033]
[1741281852211,62.6139793,144.41,144.4,0.033]
[1741281853015,69.5386793,144.41,144.4,0.033]
[1741281853416,97.22680506,144.41,144.4,0.033]
[1741281853616,69.5386793,144.41,144.4,0.033]
[1741281854610,18.64964886,144.4,144.35,312.14216157]
[1741281854813,18.18056522,144.36,144.35,312.14216157]
[1741281855015,25.10766522,144.36,144.35,312.14216157]
[1741281855222,25.10766522,144.36,144.35,312.0]
[1741281855430,18.18056522,144.36,144.35,312.0]
[1741281855648,18.18056522,144.36,144.35,312.14216157]
[1741281856543,18.18056522,144.37,144.36,0.14216157]
[1741281856733,18.18056522,144.38,144.36,0.14216157]
[1741281857036,18.18056522,144.39,144.37,0.14216157]
[1741281857621,18.18056522,144.39,144.34,7.35448471]
[1741281857811,18.18056522,144.38,144.34,7.35448471]
[1741281858010,18.18056522,144.36,144.34,0.14216157]
[1741281858223,18.18056522,144.35,144.34,0.14216157]
[1741281858450,18.18056522,144.35,144.32,14.6287]
[1741281858808,18.18056522,144.35,144.33,0.14216157]
[1741281859041,18.18056522,144.36,144.33,0.14216157]
[1741281859337,18.18056522,144.36,144.33,7.07056157]
[1741281859537,6.9256,144.39,144.33,7.07056157]
[1741281859538,18.18056522,144.37,144.33,7.07056157]
[1741281859713,18.18056522,144.38,144.33,25.25112679]
[1741281860040,18.18056522,144.38,144.37,0.14216157]
[1741281860540,18.18056522,144.38,144.34,0.14216157]
[1741281860716,18.18056522,144.38,144.34,89.17006157]
[1741281862228,6.9552,144.4,144.34,89.17006157]
[1741281862428,18.18056522,144.38,144.34,89.17006157]
[1741281862621,18.21056522,144.4,144.36,0.14216157]
[1741281862819,0.03,144.4,144.36,0.14216157]
[1741281863039,18.18056522,144.39,144.36,0.14216157]
[1741281863421,18.18056522,144.39,144.38,312.14216157]
[1741281863724,18.21056522,144.4,144.38,312.14216157]
[1741281863928,18.21056522,144.4,144.39,0.14216157]
[1741281864446,0.03,144.4,144.39,0.14216157]
[1741281864818,0.03,144.4,144.39,7.06776157]
[1741281866948,0.03,144.4,144.39,25.24832679]
[1741281867113,0.03,144.4,144.39,337.24832679]
[1741281867316,0.03,144.4,144.39,319.06776157]
[1741281868033,0.03,144.4,144.39,312.14216157]
[1741281868234,18.21056522,144.4,144.39,0.14216157]
[1741281868518,0.03,144.4,144.39,0.14216157]
[1741281870033,18.21056522,144.4,144.39,0.14216157]
[1741281870349,0.03,144.4,144.39,0.14216157]
[1741281871225,0.03,144.4,144.39,312.14216157]
[1741281872436,18.21056522,144.4,144.39,312.14216157]
[1741281872744,18.21056522,144.4,144.37,7.7]
[1741281872945,18.18056522,144.38,144.36,82.1]
[1741281873148,18.18056522,144.38,144.33,89.0283]
[1741281873449,18.18056522,144.35,144.33,89.78]
[1741281873621,18.18056522,144.35,144.34,0.14216157]
[1741281873947,18.18056522,144.36,144.34,0.17516157]
[1741281874350,18.18056522,144.37,144.34,0.17516157]
[1741281874721,18.18056522,144.35,144.34,0.033]
[1741281875956,18.18056522,144.36,144.34,0.033]
[1741281876444,18.18056522,144.35,144.34,0.033]
[1741281877430,25.10816522,144.35,144.34,0.033]
[1741281877753,26.13129479,144.35,144.34,0.033]
[1741281878452,19.20369479,144.35,144.34,0.033]
[1741281878855,1.5378,144.38,144.34,0.033]
[1741281879023,18.18056522,144.37,144.34,0.033]
[1741281879224,19.71836522,144.38,144.34,0.033]
[1741281879426,19.71836522,144.38,144.35,0.14216157]
[1741281879733,18.18056522,144.37,144.35,0.14216157]
[1741281880343,18.18056522,144.36,144.35,0.14216157]
[1741281880960,18.18056522,144.36,144.34,312.033]
[1741281880961,18.18056522,144.36,144.34,0.033]
[1741281881164,18.18056522,144.35,144.34,0.033]
[1741281881840,25.10816522,144.35,144.34,0.033]
[1741281882351,18.18056522,144.35,144.34,0.033]
[1741281882731,25.10816522,144.35,144.34,0.033]
[1741281882949,18.18056522,144.35,144.34,0.033]
[1741281883226,18.18056522,144.36,144.34,0.033]
[1741281883644,18.18056522,144.35,144.34,0.033]
[1741281885530,25.10816522,144.35,144.34,0.033]
[1741281885751,18.18056522,144.35,144.34,0.033]
[1741281885956,1.5378,144.38,144.34,0.033]
[1741281886163,18.18056522,144.37,144.34,0.033]
[1741281886454,18.18056522,144.38,144.34,0.033]
[1741281886635,18.18056522,144.38,144.34,0.17516157]
[1741281886963,18.18056522,144.38,144.34,312.17516157]
[1741281887534,18.18056522,144.39,144.36,0.14216157]
[1741281887735,0.03,144.4,144.36,0.14216157]
[1741281887935,18.18056522,144.39,144.36,0.14216157]
[1741281888863,18.21056522,144.4,144.36,0.14216157]
[1741281889239,0.03,144.4,144.36,0.14216157]
[1741281889864,18.21056522,144.4,144.35,0.14216157]
[1741281890663,0.03,144.4,144.35,25.25012679]
[1741281890850,0.03,144.4,144.37,0.14216157]
[1741281891164,0.03,144.4,144.37,82.24216157]
[1741281891539,18.21056522,144.4,144.37,394.24216157]
[1741281891960,25.13586522,144.4,144.37,394.24216157]
[1741281892153,18.18056522,144.39,144.37,394.24216157]
[1741281892339,18.18056522,144.38,144.34,82.133]
[1741281892537,18.18056522,144.37,144.35,0.14216157]
[1741281893266,18.18056522,144.36,144.35,0.14216157]
[1741281893457,18.18056522,144.36,144.34,82.133]
[1741281893659,18.18056522,144.35,144.34,0.033]
[1741281893843,25.10816522,144.35,144.34,0.033]
[1741281894565,63.4960793,144.35,144.34,0.033]
[1741281894746,64.51920887,144.35,144.34,0.033]
[1741281896535,107.372772,144.34,144.28,0.033]
[1741281896769,18.18056522,144.29,144.28,0.033]
[1741281898458,25.11096522,144.29,144.28,0.033]
[1741281898648,43.76061408,144.29,144.28,0.033]
[1741281898845,44.78374365,144.29,144.28,0.033]
[1741281899257,26.13409479,144.29,144.28,0.033]
[1741281899450,19.20369479,144.29,144.28,0.033]
[1741281899655,18.18056522,144.29,144.28,0.033]
[1741281900675,18.18056522,144.3,144.28,0.033]
[1741281900871,18.18056522,144.29,144.28,0.033]
[1741281902359,55.0107793,144.29,144.28,0.033]
[1741281902761,43.76061408,144.29,144.28,0.033]
[1741281903373,24.70964886,144.28,144.27,0.033]
[1741281903687,18.18056522,144.26,144.25,0.033]
[1741281903988,1.5523,144.23,144.19,0.033]
[1741281904180,36.36113044,144.2,144.19,0.033]
[1741281904655,43.29593044,144.2,144.19,0.033]
[1741281904854,44.31906001,144.2,144.19,0.033]
[1741281906879,82.28432314,144.19,144.14,0.033]
[1741281907064,18.18056522,144.15,144.14,0.033]
[1741281907565,19.74936522,144.15,144.14,0.033]
[1741281907757,56.5795793,144.15,144.14,0.033]
[1741281907957,25.23444886,144.14,144.09,0.033]
[1741281908181,6.5848,144.14,144.09,0.033]
[1741281908352,18.18056522,144.11,144.09,0.033]
[1741281908770,18.18056522,144.1,144.09,0.033]
[1741281909763,36.83021408,144.1,144.06,0.1]
[1741281909964,18.18056522,144.07,144.06,0.1]
[1741281910960,19.20369479,144.07,144.06,0.1]
[1741281911268,18.18056522,144.07,144.06,0.1]
[1741281911870,37.90513044,144.07,144.06,0.1]
[1741281912081,63.67810887,144.07,144.06,0.1]
[1741281912260,26.84789479,144.07,144.06,0.1]
[1741281912663,37.89739793,144.07,144.06,0.1]
[1741281913377,36.87426836,144.07,144.06,0.1]
[1741281913684,37.89739793,144.07,144.06,0.1]
[1741281914693,36.87426836,144.07,144.06,0.1]
[1741281914877,44.83839793,144.07,144.06,0.1]
[1741281915192,93.00243829,144.07,144.06,0.1]
[1741281915397,0.28432314,144.02,143.96,0.033]
[1741281915597,1.02312957,144.01,143.96,0.033]
[1741281915899,29.23006836,143.97,143.96,0.033]
[1741281916093,29.23006836,143.98,143.96,0.033]
[1741281916493,29.23006836,143.97,143.96,0.033]
[1741281916688,29.23006836,143.98,143.96,0.033]
[1741281916900,29.23006836,144.01,143.97,0.14216157]
[1741281917088,29.23006836,144.0,143.97,0.14216157]
[1741281917281,29.23006836,144.01,143.97,7.08786157]
[1741281917476,29.23006836,144.02,143.97,7.08786157]
[1741281917688,29.23006836,144.02,143.97,0.14216157]
[1741281918201,29.23006836,144.02,143.97,319.08796157]
[1741281918379,29.23006836,144.01,143.97,319.08796157]
[1741281918586,1.02312957,144.04,143.97,319.08796157]
[1741281918587,29.23006836,144.0,143.97,312.14216157]
[1741281918785,29.23006836,143.99,143.96,0.17516157]
[1741281919304,1.02312957,144.04,143.96,0.033]
[1741281919491,29.23006836,144.01,143.97,0.14216157]
[1741281919895,29.23006836,144.0,143.97,0.14216157]
[1741281920391,29.23006836,144.0,143.96,0.033]
[1741281920586,25.32012957,144.05,143.96,0.033]
[1741281920587,29.23006836,143.99,143.96,0.033]
[1741281920785,29.23006836,143.99,143.97,0.14216157]
[1741281921006,1.02312957,144.03,143.96,6.9793]
[1741281921007,29.23006836,143.98,143.96,0.033]
[1741281921500,29.23006836,143.97,143.96,0.033]
[1741281922980,6.9429,144.03,143.97,0.14216157]
[1741281923179,29.23006836,144.01,143.97,0.14216157]
[1741281923788,29.23006836,144.02,143.97,0.14216157]
[1741281923989,7.96602957,144.03,143.97,0.14216157]
[1741281924186,29.23006836,144.01,143.97,7.08756157]
[1741281924386,29.26006836,144.04,143.99,29.37222993]
[1741281924593,0.03,144.04,143.99,29.37222993]
[1741281925013,0.03,144.04,144.03,0.14216157]
[1741281925515,29.26006836,144.04,144.0,0.14216157]
[1741281925902,29.23006836,144.03,144.0,0.14216157]
[1741281926092,29.26006836,144.04,143.99,0.14216157]
[1741281926410,29.23006836,144.02,143.99,0.14216157]
[1741281927384,29.23006836,144.01,143.99,0.14216157]
[1741281927586,29.23006836,144.02,143.99,0.14216157]
[1741281928517,29.23006836,144.0,143.99,312.14216157]
[1741281930417,29.23006836,144.0,143.98,7.68]
[1741281930418,36.17446836,144.0,143.98,7.68]
[1741281930604,29.23006836,143.99,143.98,7.68]
[1741281930801,29.23006836,144.0,143.99,0.14216157]
[1741281931202,29.23006836,144.02,143.99,0.14216157]
[1741281931591,29.23006836,144.01,143.99,0.14216157]
[1741281932398,29.23006836,144.02,143.99,7.08696157]
[1741281932615,29.23006836,144.02,143.99,0.14216157]
[1741281933093,29.23006836,144.02,143.99,7.08686157]
[1741281933294,29.26006836,144.04,143.99,7.08686157]
[1741281933502,0.03,144.04,144.03,0.14216157]
[1741281934016,0.03,144.04,144.0,0.14216157]
[1741281934708,0.03,144.04,144.01,0.14216157]
[1741281935216,18.26549653,144.02,144.0,0.14216157]
[1741281935399,18.26549653,144.01,144.0,0.14216157]
[1741281935712,18.26549653,144.02,144.0,0.14216157]
[1741281935897,18.26549653,144.02,143.99,0.14216157]
[1741281936422,18.26549653,144.01,143.99,0.14216157]
[1741281936621,18.26549653,144.02,143.99,0.14216157]
[1741281937042,18.26549653,144.02,143.99,312.14216157]
[1741281937616,18.29549653,144.04,143.99,7.08706157]
[1741281938107,18.26549653,144.03,143.99,7.08706157]
[1741281938518,18.29549653,144.04,143.99,7.08706157]
[1741281939035,0.03,144.04,143.99,7.08706157]
[1741281939207,18.29549653,144.04,143.99,7.08706157]
[1741281939406,25.23799653,144.04,143.99,7.08706157]
[1741281939627,18.29549653,144.04,143.99,7.08706157]
[1741281940227,0.03,144.04,143.99,107.4525581]
[1741281940436,0.03,144.04,144.01,0.14216157]
[1741281940733,0.03,144.04,144.03,312.14216157]
[1741281941107,0.03,144.04,144.03,319.08506157]
[1741281941437,0.03,144.04,144.03,312.14216157]
[1741281942007,18.29549653,144.04,144.03,312.14216157]
[1741281942736,0.03,144.04,144.03,312.14216157]
[1741281946138,0.03,144.04,144.03,319.08506157]
[1741281946315,0.03,144.04,144.03,337.3505581]
[1741281946509,0.03,144.04,144.03,419.4505581]
[1741281946830,0.03,144.04,144.03,576.1845301]
[1741281947411,18.26549653,144.13,144.07,18.4076581]
[1741281947611,18.26549653,144.13,144.09,0.14216157]
[1741281947812,18.26549653,144.14,144.09,0.14216157]
[1741281948313,18.26549653,144.13,144.09,0.14216157]
[1741281949132,18.26549653,144.13,144.11,0.14216157]
[1741281949530,18.26549653,144.14,144.11,0.14216157]
[1741281949725,18.26549653,144.15,144.11,0.14216157]
[1741281949924,18.26549653,144.14,144.11,0.14216157]
[1741281950531,18.26549653,144.14,144.11,312.14216157]
[1741281950731,18.26549653,144.15,144.11,312.14216157]
[1741281950940,1.5718,144.19,144.13,0.14216157]
[1741281951143,18.26549653,144.18,144.15,0.14216157]
[1741281951638,18.26549653,144.17,144.15,0.14216157]
[1741281952042,18.26549653,144.16,144.15,0.14216157]
[1741281952215,18.26549653,144.17,144.15,0.14216157]
[1741281953150,25.20169653,144.17,144.15,0.14216157]
[1741281953455,0.03,144.19,144.15,0.14216157]
[1741281953652,0.03,144.19,144.18,0.14216157]
[1741281953852,0.03,144.19,144.18,18.69198124]
[1741281954147,0.03,144.19,144.18,312.14216157]
[1741281954537,0.03,144.19,144.18,330.4076581]
[1741281954868,0.03,144.19,144.18,312.14216157]
[1741281955231,0.03,144.19,144.18,319.07786157]
[1741281955429,0.03,144.19,144.18,312.14216157]
[1741281956356,0.03,144.19,144.16,0.14216157]
[1741281956751,0.03,144.19,144.16,137.94216157]
[1741281957654,0.03,144.19,144.16,163.1443581]
[1741281958162,0.03,144.19,144.16,137.94216157]
[1741281958557,0.03,144.19,144.16,163.1443581]
[1741281958857,0.03,144.19,144.16,137.94216157]
[1741281959272,0.03,144.19,144.16,449.94216157]
[1741281960271,0.03,144.19,144.18,0.42648471]
[1741281960474,0.03,144.19,144.18,38.69198124]
[1741281960783,0.03,144.19,144.18,20.14216157]
[1741281961148,0.03,144.19,144.17,0.14216157]
[1741281961449,0.03,144.19,144.17,18.69198124]
[1741281961650,0.03,144.19,144.18,25.3433581]
[1741281961958,0.03,144.19,144.18,245.52768124]
[1741281962645,0.03,144.19,144.18,227.26218471]
[1741281962845,0.03,144.19,144.18,245.52768124]
[1741281963352,0.03,144.19,144.18,557.52768124]
[1741281963847,0.03,144.19,144.18,539.26218471]
[1741281964552,0.03,144.19,144.18,557.52768124]
[1741281965161,0.03,144.19,144.18,532.04216157]
[1741281965358,0.03,144.19,144.18,538.97786157]
[1741281965566,0.03,144.19,144.18,394.1]
[1741281965750,0.03,144.19,144.18,82.1]
[1741281965950,0.03,144.19,144.18,82.24216157]
[1741281966176,0.03,144.19,144.18,82.1]
[1741281966357,18.29549653,144.19,144.18,82.1]
[1741281966668,18.29549653,144.19,144.18,82.24216157]
[1741281966870,18.29549653,144.19,144.13,247.38]
[1741281967082,18.26549653,144.15,144.14,7.64]
[1741281967450,18.26549653,144.15,144.14,7.78216157]
[1741281967964,25.20269653,144.15,144.14,7.64]
[1741281968271,25.20269653,144.15,144.13,82.1]
[1741281968772,25.20269653,144.15,144.14,0.14216157]
[1741281968948,25.20269653,144.15,144.09,7.85324235]
[1741281969153,18.26549653,144.13,144.1,0.14216157]
[1741281969583,18.26549653,144.14,144.1,0.14216157]
[1741281969754,18.26549653,144.15,144.1,0.14216157]
[1741281970081,18.26549653,144.15,144.1,220.04216157]
[1741281970288,18.26549653,144.15,144.12,0.14216157]
[1741281970449,6.936,144.18,144.12,0.14216157]
[1741281970858,18.26549653,144.18,144.12,18.69198124]
[1741281971361,24.57609653,144.19,144.14,0.14216157]
[1741281971653,18.26549653,144.17,144.14,0.14216157]
[1741281971880,18.26549653,144.17,144.12,219.9]
[1741281971881,18.26549653,144.18,144.13,0.14216157]
[1741281972062,18.26549653,144.18,144.16,0.14216157]
[1741281972979,0.03,144.19,144.16,0.14216157]
[1741281973184,0.03,144.19,144.16,220.04216157]
[1741281974174,18.29549653,144.19,144.16,220.04216157]
[1741281974991,0.03,144.19,144.16,226.97876157]
[1741281975378,0.03,144.19,144.16,220.04216157]
[1741281975767,0.03,144.19,144.16,245.2442581]
[1741281975976,0.03,144.19,144.18,312.14216157]
[1741281976167,0.03,144.19,144.18,319.07786157]
[1741281976792,0.03,144.19,144.18,312.14216157]
[1741281977799,0.03,144.19,144.18,538.97786157]
[1741281978018,0.03,144.19,144.18,532.04216157]
[1741281979608,0.03,144.19,144.18,538.97786157]
[1741281979805,0.03,144.19,144.18,532.04216157]
[1741281981006,0.03,144.19,144.18,538.97786157]
[1741281981210,0.03,144.19,144.18,557.52768124]
[1741281981510,0.03,144.19,144.18,438.3773301]
[1741281981673,0.03,144.19,144.18,576.1773301]
[1741281983689,0.03,144.19,144.18,583.8173301]
[1741281987102,7.8424,144.28,144.22,20.14216157]
[1741281987308,0.03,144.29,144.26,0.14216157]
[1741281987492,0.03,144.29,144.28,18.26549653]
[1741281987690,0.03,144.29,144.28,18.4076581]
[1741281987896,0.03,144.29,144.28,20.14216157]
[1741281988094,0.03,144.29,144.28,0.14216157]
[1741281988494,36.6388261,144.34,144.26,227.54]
[1741281988809,18.26549653,144.31,144.27,0.14216157]
[1741281988981,18.26549653,144.29,144.27,89.88216157]
[1741281989182,18.26549653,144.3,144.27,89.88216157]
[1741281989408,6.9285,144.33,144.27,89.88216157]
[1741281989592,18.26549653,144.31,144.27,96.81356157]
[1741281989789,18.26549653,144.31,144.27,89.88216157]
[1741281989989,18.26549653,144.29,144.27,89.88216157]
[1741281990199,18.26549653,144.29,144.27,401.88216157]
[1741281990606,29.12847521,144.29,144.27,401.88216157]
[1741281990807,29.12847521,144.28,144.27,312.0]
[1741281991019,35.57857521,144.28,144.24,82.1]
[1741281991319,29.12847521,144.26,144.25,0.14216157]
[1741281992014,29.12847521,144.27,144.25,0.14216157]
[1741281993191,13.3815,144.28,144.25,0.14216157]